Cogmind - Beta 10.1 @@@ ROGUE MODE // 2020.12.10 @ 21:33:43 Player: S0ZDATEL Result: Self-destructed Performance ------------- Evolutions (1) 500 Regions Visited (3) 600 Robots Destroyed (21) 105 Value Destroyed (506) 506 Prototype IDs (0) 0 Alien Tech Used (0) 0 Bonus (99) 99 TOTAL SCORE: 1810 Bonus ------- Follower Combat Kills 99 Cogmind --------- Core Integrity 294/400 Matter 215/300 Energy 69/100 System Corruption 0% Temperature Cool (0) Movement Core (650) Ox12 Location -9/Materials Parts ------- > --- POWER (1) -------- (None) > --- PROPULSION (3) --- (None) > --- UTILITY (3) ------ Large Storage Unit Large Storage Unit > --- WEAPON (2) ------- Beam Cannon Assault Rifle > --- INVENTORY (16) --- Ion Engine Light Nuclear Core Light Treads Light Treads Aluminum Leg Aluminum Leg Small Storage Unit High-capacity Storage Unit Improved Sensor Array Improved Signal Interpreter Reflective Plating Assault Rifle Peak State ------------ > --- POWER ------------ Ion Engine > --- PROPULSION ------- Wheel Wheel > --- UTILITY ---------- Large Storage Unit Large Storage Unit Light Armor Plating > --- WEAPON ----------- Assault Rifle High-powered Shotgun > --- INVENTORY -------- Ion Engine Light Nuclear Core Light Treads Light Treads Aluminum Leg Aluminum Leg Small Storage Unit High-capacity Storage Unit Improved Sensor Array Reflective Plating Particle Gun Beam Cannon Beam Cannon Assault Rifle Assault Rifle [Rating: 12] Favorites ----------- Power Ion Engine Engine Ion Engine Propulsion Wheel Wheel Wheel Utility Large Storage Unit Storage Large Storage Unit Protection Light Armor Plating Weapon Assault Rifle Energy Gun Particle Gun Energy Cannon Beam Cannon Ballistic Gun Assault Rifle Launcher Grenade Launcher Build | -11 -10 -10 -9 ------- Run | Scr Mat Min Mat Slots Evolved 2 | . . . 2 Power . | . . . . Propulsion 1 | . . . 1 Utility 1 | . . . 1 Weapon . | . . . . Parts Attached 21 | 6 4 6 5 Power 3 | 1 . 2 . Engine 3 | 1 . 2 . Core . | . . . . Reactor . | . . . . Propulsion 3 | 2 1 . . Treads . | . . . . Leg . | . . . . Wheel 3 | 2 1 . . Hover . | . . . . Flight . | . . . . Utility 4 | 1 1 1 1 Device . | . . . . Storage 3 | 1 1 1 . Processor . | . . . . Hackware . | . . . . Protection 1 | . . . 1 Artifact . | . . . . Weapon 11 | 2 2 3 4 Energy Gun 1 | . . . 1 Energy Cannon 2 | . . . 2 Ballistic Gun 7 | 2 2 2 1 Ballistic Cannon . | . . . . Launcher 1 | . . 1 . Special Weapon . | . . . . Impact Weapon . | . . . . Slashing Weapon . | . . . . Piercing Weapon . | . . . . Special Melee Weapon . | . . . . Unidentified Prototypes . | . . . . Parts Lost 9 | . . 1 8 Power 1 | . . . 1 Propulsion 2 | . . . 2 Utility 1 | . . . 1 Weapon 5 | . . 1 4 Highest Loss Streak 8 | . . 1 8 Average Slot Usage (%) 96 | . 96 99 76 Engine 13 | . 14 13 9 Wheel 26 | . 28 28 14 Storage 27 | . 27 28 22 Protection 1 | . . . 8 Ballistic Gun 25 | . 25 26 18 Launcher 1 | . . 1 . Naked Turns . | . . . . Heaviest Build 45 | 11 27 42 45 Greatest Support 26 | 10 26 20 20 Greatest Overweight (x) 2 | 1 2 2 2 Average Overweight (x) 1 | . 1 1 2 Largest Inventory Capacity 16 | 6 12 16 16 Average Capacity 12 | 5 11 13 16 Most Carried 16 | 6 12 15 16 Average Carried 12 | 4 10 12 15 Final Capacity 16 | 6 12 16 16 Final Carried 15 | 6 12 15 12 Class Distribution -------------------- 100% | Mutant Dominant Class ---------------- Mutant | -10/Materials Mutant | -10/Mines Mutant | -9/Materials Resources | -11 -10 -10 -9 ----------- Run | Scr Mat Min Mat Matter Collected 709 | 314 61 297 37 Remotely . | . . . . Salvage Created 736 | 144 165 228 199 Parts 31 | 4 4 12 11 Haulers Intercepted . | . . . . Recyclers Shooed 1 | . 1 . . Parts Field Recycled . | . . . . Retrieved Matter . | . . . . Parts Self-Destructed . | . . . . Prevented . | . . . . Kills | -11 -10 -10 -9 ------- Run | Scr Mat Min Mat Combat Hostiles Destroyed 16 | . 3 6 7 Guns 13 | . 3 6 4 Cannons 3 | . . . 3 Classes Destroyed 6 | 2 2 1 1 Tunneler 3 | 3 . . . Recycler 1 | 1 . . . Watcher 1 | . 1 . . Swarmer 5 | . . 1 4 Grunt 10 | . 3 5 2 Duelist 1 | . . . 1 Best Kill Streak 4 | 4 4 2 4 Combat Bots Only 4 | . 3 2 4 Max Kills in Single Turn 1 | 1 1 1 1 Gunslinging . | . . . . Exploded . | . . . . Melee . | . . . . Uniques/NPCs Destroyed . | . . . . Combat | -11 -10 -10 -9 -------- Run | Scr Mat Min Mat Damage Taken 1054 | . 78 338 638 Core 194 | . 24 64 106 Absorbed by Shields . | . . . . Core Remaining (%) 82 | 100 . 64 . Volleys Fired 85 | 9 17 35 24 Largest 2 | 2 2 2 2 Hottest 85 | 40 40 45 85 Shots Fired 144 | 18 34 49 43 Gun 137 | 18 34 49 36 Cannon 7 | . . . 7 Launcher . | . . . . Special . | . . . . Kinetic 135 | 18 34 49 34 Thermal 9 | . . . 9 Explosive . | . . . . Electromagnetic . | . . . . Robot Hit Streak 9 | 4 3 9 6 Robot Miss Streak 4 | 2 4 3 4 Penetration Max . | . . . . Secondary Targets 4 | . 1 . 3 Max Gunslinging Chain 1 | . 1 . 1 Shots Hit Robots 97 | 11 17 39 30 Core Hits 33 | 5 7 11 10 Critical Hits 1 | . . 1 . Critical Kills 1 | . . 1 . Critical Parts Destroyed . | . . . . Melee Attacks . | . . . . Impact . | . . . . Slashing . | . . . . Piercing . | . . . . Sneak Attacks . | . . . . Combat Hostiles . | . . . . Follow-up Attacks . | . . . . Damage Inflicted 1329 | 140 198 595 396 Guns 1226 | 140 198 595 293 Cannons 103 | . . . 103 Explosions . | . . . . Melee . | . . . . Ramming . | . . . . Kinetic 1195 | 140 198 595 262 Thermal 134 | . . . 134 Explosive . | . . . . Electromagnetic . | . . . . Impact . | . . . . Slashing . | . . . . Piercing . | . . . . Highest Corruption . | . . . . Average Corruption . | . . . . Corruption Purged . | . . . . Overload Shots . | . . . . Overflow Damage 1 | . . . 1 Projectiles 1 | . . . 1 Explosions . | . . . . Melee . | . . . . Knockbacks . | . . . . Impact . | . . . . Kinetic . | . . . . Secondary . | . . . . Self-Inflicted Damage . | . . . . Shots . | . . . . Rammed . | . . . . Targets Rammed . | . . . . Kicked . | . . . . Crushed . | . . . . Highest Temperature 37 | . . 10 37 Average Temperature 9 | . . 4 12 Received Heat Transfer 255 | . 42 153 60 Siege Activations . | . . . . Robots Corrupted . | . . . . Combat Hostiles . | . . . . Parts Fried . | . . . . Impact Corruptions . | . . . . Robots Melted . | . . . . Combat Hostiles . | . . . . Parts Melted 1 | . . 1 . Heat Transferred 296 | . . . 296 Parts Sabotaged . | . . . . Parts Stolen . | . . . . Parts Stripped . | . . . . Power Chain Reactions . | . . . . Missiles Intercepted . | . . . . Alert | -11 -10 -10 -9 ------- Run | Scr Mat Min Mat Peak Influence 203 | 20 135 203 136 Initial 52 | . 13 52 41 Average 67 | 5 70 72 68 Maximum Alert Level 1 | . . 1 . Low Security (%) 98 | 100 100 96 100 Level 1 1 | . . 3 . Level 2 . | . . . . Level 3 . | . . . . Level 4 . | . . . . Level 5 . | . . . . High Security . | . . . . Max Security . | . . . . Squads Dispatched 6 | . 3 1 2 Investigation 3 | . 2 1 . Extermination . | . . . . Reinforcement 3 | . 1 . 2 Assault . | . . . . Garrison . | . . . . Intercept . | . . . . Construction Impeded . | . . . . Haulers Reinforced . | . . . . Stealth | -11 -10 -10 -9 --------- Run | Scr Mat Min Mat Distress Signals . | . . . . Communications Jammed . | . . . . Distress Signals . | . . . . Times Spotted 25 | . 4 12 9 Peak Tracking Total 8 | . 3 3 8 Tactical Retreats 2 | . . 2 . Traps | -11 -10 -10 -9 ------- Run | Scr Mat Min Mat Traps Triggered 2 | . 2 . . Indirectly . | . . . . Trap Hack Attempts . | . . . . Triggered . | . . . . Disarmed . | . . . . Reprogrammed . | . . . . Reused . | . . . . Traps Extracted . | . . . . Installed . | . . . . Triggered . | . . . . Machines | -11 -10 -10 -9 ---------- Run | Scr Mat Min Mat Machines Disabled . | . . . . Max in Single Turn . | . . . . Machines Sabotaged . | . . . . Garrisons Compromised . | . . . . Overloaded Fab Kills . | . . . . Fab Network Shutdowns . | . . . . Hacking | -11 -10 -10 -9 --------- Run | Scr Mat Min Mat Machines Accessed 4 | . 3 1 . Terminals 2 | . 2 . . Fabricators . | . . . . Repair Stations 1 | . 1 . . Recycling Units . | . . . . Scanalyzers . | . . . . Garrison Access . | . . . . Total Hacks 9 | . 8 1 . Successful 8 | . 7 1 . Failed 1 | . 1 . . Catastrophic . | . . . . Database Lockouts . | . . . . Manual 2 | . 2 . . Terminals 4 | . 4 . . Fabricators . | . . . . Repair Stations 4 | . 4 . . Recycling Units . | . . . . Scanalyzers . | . . . . Garrison Access . | . . . . Terminal Hacks 2 | . 1 1 . Open Door 1 | . . 1 . Branch Access Points 1 | . 1 . . Fabricator Hacks . | . . . . Repair Station Hacks 4 | . 4 . . Scan Component 2 | . 2 . . Repair 2 | . 2 . . Recycling Unit Hacks . | . . . . Scanalyzer . | . . . . Garrison Access Hacks . | . . . . Unauthorized Hacks 2 | . 2 . . Terminals 2 | . 2 . . Track 1 | . 1 . . Botnet 1 | . 1 . . Fabricators . | . . . . Repair Stations . | . . . . Recycling Units . | . . . . Scanalyzers . | . . . . Garrison Access . | . . . . Data Cores Recovered . | . . . . Used . | . . . . Hacking Detections 3 | . 3 . . Full Trace Events . | . . . . Feedback Events . | . . . . Feedback Blocked . | . . . . Robot Schematics Acquired . | . . . . Robots Built . | . . . . Matter . | . . . . Time . | . . . . Total Robot Build Rating . | . . . . Part Schematics Acquired . | . . . . Parts Built . | . . . . Matter . | . . . . Time . | . . . . Total Part Build Rating . | . . . . Parts Repaired 2 | . 2 . . Time 52 | . 52 . . Parts Recycled . | . . . . Recycled Matter . | . . . . Retrieved Matter . | . . . . Retrieved Components . | . . . . Parts Scanalyzed . | . . . . Part Schematics Acquired . | . . . . Parts Damaged . | . . . . Bothacking | -11 -10 -10 -9 ------------ Run | Scr Mat Min Mat Used RIF Installer . | . . . . Robots Hacked . | . . . . Non-combat . | . . . . Combat . | . . . . Robot Hacks Applied . | . . . . Relay Couplers Released . | . . . . Robots Rewired . | . . . . Allies Hacked . | . . . . Hacks Repelled . | . . . . Allies | -11 -10 -10 -9 -------- Run | Scr Mat Min Mat Total Allies 3 | . . 3 . Largest Group 3 | . . 3 . Highest-Rated Group 40 | . . 40 . Highest-Rated Ally 16 | . . 16 . Total Orders . | . . . . Ally Attacks 42 | . . 42 . Total Damage 404 | . . 404 . Kills 5 | . . 5 . Allies Corrupted . | . . . . Allies Melted . | . . . . Intel | -11 -10 -10 -9 ------- Run | Scr Mat Min Mat Robot Analysis Total . | . . . . Derelict Logs Recovered 1 | . . 1 . Drone Launches . | . . . . Drone Recoveries . | . . . . Exploration | -11 -10 -10 -9 ------------- Run | Scr Mat Min Mat Turns Passed 1216 | 74 304 694 144 Spaces Moved 858 | 37 177 601 43 Core 4 | 4 . . . Treads . | . . . . Legs . | . . . . Wheels 854 | 33 177 601 43 Hover . | . . . . Flight . | . . . . Fastest Speed 50 | 50 90 90 100 Average Speed 92 | 84 95 92 100 Slowest Speed 100 | 90 100 100 100 Overloaded Moves . | . . . . Propulsion Burnouts . | . . . . Robots Hopped . | . . . . Cave-ins Triggered . | . . . . Exploration Rate (%) 40 | 4 51 98 10 Regions Visited 3 Branch Regions 1 Pre-discovered Areas . | . . . . Known Exits Taken 1 | . 1 . . Unknown Exits Taken 2 | 1 . 1 . Scrap Searched 1 | . . 1 . Spaces Dug . | . . . . Terrain Destroyed . | . . . . Melee . | . . . . Projectile . | . . . . AOE . | . . . . Terrain Rammed . | . . . . Walls Destroyed . | . . . . Machines Disabled . | . . . . Actions | -11 -10 -10 -9 --------- Run | Scr Mat Min Mat Total 1129 | 58 277 693 101 Wait 135 | . 68 40 27 Move 855 | 36 176 600 43 Hop . | . . . . Pick Up 22 | 7 8 5 2 Fast Attach 13 | 5 4 4 . Attach 7 | 1 . 1 5 Detach 3 | . 1 2 . Swap 1 | . . 1 . Drop 8 | . 3 5 . Fire 85 | 9 17 35 24 Melee . | . . . . Ram . | . . . . Kick . | . . . . Crush . | . . . . Escape Stasis . | . . . . Rewire . | . . . . Trap . | . . . . Miscellaneous . | . . . . Route ------- -11/Scrapyard -10/Materials -10/Mines (discovered 2 exits: [*Mat x2]) -9/Materials (discovered 1 exit: Sto) History --------- Turn | Location | Event 20 | -11/Scrapyard | Discovered new exit (range 16) 75 | -11/Scrapyard | Entered Materials 297 | -10/Materials | Identified exit to Mines 313 | -10/Materials | Build established: Mutant 335 | -10/Materials | Repaired Assault Rifle 362 | -10/Materials | Repaired Assault Rifle 379 | -10/Materials | Entered Mines 384 | -10/Mines | Met a Derelict shopkeep closing up shop 488 | -10/Mines | Assisted by bots powering up and referring to "LRC-V3" 787 | -10/Mines | Discovered new exit (range 11) 847 | -10/Mines | Discovered new exit (range 9) 1073 | -10/Mines | Entered Materials 1073 | -9/Materials | Evolved 2 slots: Propulsion x1, Utility x1 1074 | -9/Materials | Identified exit to Storage 1217 | -9/Materials | Self-destructed Last Messages --------------- 01164_ Switching to secondary target: S-10 Pest. 01165_ Acquired 20 matter. 01166_ Wheel destroyed. 01170_ S-10 Pest destroyed. 01170_ Switching to secondary target: S-10 Pest. 01171_ Acquired 17 matter. 01173_ S-10 Pest destroyed. 01174_ Hpw. Shotgun destroyed. 01177_ Wheel destroyed. 01184_ R-06 Scavenger collects Lgt. Ion Engine. 01187_ Lgt. Armor Plating destroyed. 01187_ R-06 Scavenger collects Flight Unit. 01192_ Ion Engine destroyed. 01192_ Assault Rifle destroyed. 01192_ Particle Gun destroyed. 01201_ L-31 Rogue destroyed. 01207_ Beam Cannon destroyed. 01208_ G-34 Mercenary destroyed. 01214_ Destroyed Hover Unit. 01215_ ALERT: Hostiles spotted, dispatching reinforcements to Terminal M006. Map ----- +----------------------------------------------------+ | ?????????????????????????????????????????????????? | | ?????????????????????????????????????????????????? | | ?????????????????????????????????????????????????? | | ?????????????????????????????????????????????????? | | ?????????????????????????????????????????????????? | | ?????????????????????????????????????????????????? | | ?????????????????????????????????????????????????? | | ?????????????????????????????????????????????????? | | ?????????????????????????????????????????????????? | | ?????????????????????????????????????????????????? | | ?????????????????????????????????????????????????? | | ?????????????????????????????????????????????????? | | ?????????????????????????????????????????????????? | | ?????????????????????????????????????????????????? | | ?????????????????????????????????????????????????? | | ?????????????????????????????????????????????????? | | ?????????????????????????????????????????????????? | | ??????????????????????#?#+#??????????????????????? | | ?????????????????????? ? ??????????????????????? | | ?????????????????????? ##+#####??????????????????? | | ?????????????????????# # #??????????????????? | | ?????????????????????# # =#??????????????????? | | ?????????????????????# #""" #??????????????????? | | ?????????????????????# #""" #??????????????????? | | ?????????????????????# #"""[% #??????????????????? | | ?????????????????????# #=@%%= #??????????????????? | | ???????????????????### ###+####### #???????????? | | ???????????????????# %/ #???????????? | | ???????????????????# +??????????? | | ???????????????????# """ #???????????? | | ???????????????????# #### "T" #???????????? | | ?????????########### #??? ????????????? | | ?????????# # #??? #???????????? | | ?????????# # #??? ?????????????? | | ?????????# # #??? """ ????????????? | | ?????????# # #??? ! """ ?#???????????? | | ?????????# # #??? ""???????????????? | | ?????????# """ """ + #??? % ???????????????? | | ?????????# """ """ # #???? ???????????????? | | ?????????# """ """ # #???? """??????????????? | | ?????????########### ##??? ?"????????????????? | | ????############### #??? ????????????????????? | | ????# #????????????????????????? | | ????# #????????????????????????? | | ????# #????????????????????????? | | ????####+######+### #????????????????????????? | | ?????# ## #######????????????????????????? | | ?????# !! ## #??????????????????????????????? | | ?????# !! ## #??????????????????????????????? | | ?????# !! ## #??????????????????????????????? | +----------------------------------------------------+ Best States ------------- Heat Dissipation 28 Energy Generation 10 Energy Capacity 250 Matter Stores 300 Matter Capacity 300 Sight Range 16 Terrain Scan Density 10 Armor Coverage 150 Evasion (%) 42 Item Schematics ----------------- None Robot Schematics ------------------ None Fabricated ------------ Nothing Alien Tech Used ----------------- None Achievements -------------- None Challenges ------------ None Game ------ Seed FlyingSwarmWarhead Manual? 0 Play Time 00:28:10 Cumulative 4.1 hours Start 2020.12.10 @ 20:54:03 End 2020.12.10 @ 21:33:43 Sessions 1 Manual Loads 0 Difficulty Rogue Special Mode None Game No. 3 Rogue 3 Adventurer 0 Explorer 0 Win Type - Total 0 Types 0/0/0/0/0/0/0/0/0 Lore% 8 Gallery% 9 Achievement% 14 Wizard Run 0 Options --------- ASCII 0 Keyboard 0 Movement Numpad Keybinds 0 Fullscreen 1 Font 12/Smallcaps Map View 83x54 Tactical HUD 1 Map Filters NONE Filters NONE Steam X RUN: 50464ff6-a5b7-45ef-9423-d3578373c85e